Workbook

Sheet ESTIMATE
C1: PROJECT: MERCED CONVENIENCE STORE | N1: Web: http://sigmaestimations.com Email: info@sigmaestimations.com
C3: LOCATION: 1480 WEST 16TH STREET MERCED, CA 95340
A5: ITEM # | B5: DWG # | C5: CSI #/SUB DETAIL | D5: DESCRIPTION | E5: QTY. | F5: WASTE | G5: QTY. W/ WASTE | H5: UNIT | I5: UNIT LABOR HOURS | J5: TOTAL LABOR HOURS | K5: PER HOUR LABOR RATE | L5: TOTAL LABOR COST | M5: UNIT MATERIAL COST | N5: TOTAL MATERIAL COST | O5: ITEM COST | P5: TRADE COST
C6: 010000 | D6: DIVISION 01 — GENERAL REQUIREMENTS
A7: =IF(H7<>"",1+MAX(A1:A6),"") -> 1 | D7: Submittal Procedures | E7: 1 | F7: 0% | G7: =E7+(E7*F7) -> 1 | H7: LS | I7: 0.00 | J7: =I7*G7 -> 0.00 | K7: 0 | L7: =K7*J7 -> 0 | M7: 0 | N7: =M7*G7 -> 0 | O7: =L7+N7 -> 0
A8: =IF(H8<>"",1+MAX(A2:A7),"") -> 2 | D8: Temporary Facilities and Controls | E8: 1 | F8: 0% | G8: 1 | H8: LS | I8: 0.00 | J8: 0.00 | K8: 0 | L8: 0 | M8: 0 | N8: 0 | O8: 0
A9: 3 | D9: Closeout Procedures | E9: 1 | F9: 0% | G9: 1 | H9: LS | I9: 0.00 | J9: 0.00 | K9: 0 | L9: 0 | M9: 0 | N9: 0 | O9: 0
A10: 4 | D10: Payment Procedures | E10: 1 | F10: 0% | G10: 1 | H10: LS | I10: 0.00 | J10: 0.00 | K10: 0 | L10: 0 | M10: 0 | N10: 0 | O10: 0
A11: 5 | D11: Contract Modification Procedures | E11: 1 | F11: 0% | G11: 1 | H11: LS | I11: 0.00 | J11: 0.00 | K11: 0 | L11: 0 | M11: 0 | N11: 0 | O11: 0
A12: 6 | D12: Maintenance & Traffic Protection | E12: 1 | F12: 0% | G12: 1 | H12: LS | I12: 0.00 | J12: 0.00 | K12: 0 | L12: 0 | M12: 0 | N12: 0 | O12: 0
D13: SUBTOTAL | L13: =IF(H13<>"",0.4*N13,"") ->  | M13: =IF(H13<>"",N13-L13,"") ->  | P13: =SUM(O7:O12) -> 0
C14: 300000 | D14: DIVISION 03 — CONCRETE
D16: Site Concrete
A17: 7 | B17: P101-P103 | C17: P101-P103 | D17: (24" x 24" x 8" Thick) Concrete Collar #4 Reb-Bar Both Sides | E17: =2*2*0.67/27 -> 0.1 | F17: 5% | G17: =E17+(E17*F17) -> 0 | H17: CY | I17: 1.75 | J17: =I17*G17 -> 0.18 | K17: $66.41 | L17: =K17*J17 -> $12.11 | M17: $245.00 | N17: =M17*G17 -> $25.53 | O17: =L17+N17 -> $38
A18: 8 | B18: P101-P103 | C18: P101-P103 | D18: 4" Thick Concrete Apron | E18: 7 | F18: 5% | G18: 7 | H18: SF | I18: 0.03 | J18: 0.22 | K18: $66.41 | L18: $14.46 | M18: $2.70 | N18: $19.59 | O18: $34
D20: SUBTOTAL | L20: =IF(H20<>"",0.4*N20,"") ->  | P20: =SUM(O15:O19) -> $72
C21: 600000 | D21: DIVISION 06 — WOOD PLASTIC AND THERMAL COMPOSITES
D23: Misc.
A24: 9 | B24: P101-P103 | C24: P101-P103 | D24: 2 x6 Redwood Grade Boards | E24: =6.25*6.67 -> 42 | F24: 5% | G24: =E24+(E24*F24) -> 44 | H24: SF | I24: 0.02 | J24: =I24*G24 -> 0.77 | K24: $66.41 | L24: =K24*J24 -> $50.87 | M24: $2.45 | N24: =M24*G24 -> $107.24 | O24: =L24+N24 -> $158
D26: SUBTOTAL | L26: =IF(H26<>"",0.4*N26,"") ->  | P26: =SUM(O22:O25) -> $158
C27: 260000 | D27: DIVISION 26 — PLUMBING
D29: Fixtures
A30: 10 | B30: P101-P103 | C30: P101-P103 | D30: S-1: Triple Compartment Sink Manuf: Advanced Tabco Model: #Fe-3-1515-15Rl-X W/ "T&S" Model: #B-0123-A10-08 Spray Faucet | E30: 1 | F30: 0% | G30: =E30+(E30*F30) -> 1 | H30: EA | I30: 6.42 | J30: =I30*G30 -> 6.42 | K30: $66.41 | L30: =K30*J30 -> $426.41 | M30: $1,541.00 | N30: =M30*G30 -> $1,541.00 | O30: =L30+N30 -> $1,967
A31: 11 | B31: P101-P103 | C31: P101-P103 | D31: Fs: 12"X12"X6" Floor Sink Manuf: Ceco | E31: 3 | F31: 0% | G31: 3 | H31: EA | I31: 3.84 | J31: 11.52 | K31: $66.41 | L31: $765.21 | M31: $921.80 | N31: $2,765.40 | O31: $3,531
A32: 12 | B32: P101-P103 | C32: P101-P103 | D32: S-2: 1-Compartment Prep Sink Manuf: Advanced Tabco Model: #93-1-24 Regaline Sink | E32: 1 | F32: 0% | G32: =E32+(E32*F32) -> 1 | H32: EA | I32: 7.39 | J32: 7.39 | K32: $66.41 | L32: $490.65 | M32: $2,512.00 | N32: $2,512.00 | O32: $3,003
A33: 13 | B33: P101-P103 | C33: P101-P103 | D33: Mop Sink | E33: 1 | F33: 0% | G33: =E33+(E33*F33) -> 1 | H33: EA | I33: 2.92 | J33: 2.92 | K33: $66.41 | L33: $193.70 | M33: $700.00 | N33: $700.00 | O33: $894
A34: 14 | B34: P101-P103 | C34: P101-P103 | D34: S-3: Hand Wash Sink Manuf: Advanced Tabco 17"X15" Stainless Steel Wall-Mounted Service Sink, Overall 28" F/B X 27" L/R, N.S.F. | E34: 1 | F34: 0% | G34: 1 | H34: EA | I34: 2.66 | J34: 2.66 | K34: $66.41 | L34: $176.80 | M34: $638.93 | N34: $638.93 | O34: $816
A35: 15 | B35: P101-P103 | C35: P101-P103 | D35: Hb-1: Hose Bib Manuf: Woodford Model: #Mb24-3/4 Wall Hydrant W/ Composite Modular Box | E35: 3 | F35: 0% | G35: =E35+(E35*F35) -> 3 | H35: EA | I35: 1.19 | J35: =I35*G35 -> 3.56 | K35: $66.41 | L35: =K35*J35 -> $236.14 | M35: $284.46 | N35: =M35*G35 -> $853.38 | O35: =L35+N35 -> $1,090
A36: 16 | B36: P101-P103 | C36: P101-P103 | D36: Cp-1: Circulating Pump Manuf: Grundfos Model: #Up15-29Su Voltage: 115V/1Ph, Weight: 15 LBS | E36: 1 | F36: 0% | G36: =E36+(E36*F36) -> 1 | H36: EA | I36: 1.66 | J36: 1.66 | K36: $66.41 | L36: $110.40 | M36: $398.99 | N36: $398.99 | O36: $509
A37: 17 | B37: P101-P103 | C37: P101-P103 | D37: WH-1: Tankless Gas Water Heater | E37: 2 | F37: 0% | G37: =E37+(E37*F37) -> 2 | H37: EA | I37: 4.49 | J37: 8.98 | K37: $66.41 | L37: $596.58 | M37: $1,078.00 | N37: $2,156.00 | O37: $2,753
A38: 18 | B38: P101-P103 | C38: P101-P103 | D38: BFP: Back Flow Preventer Manuf: Watts Model: #Ss009m3-Qt-1/2 Stainless Steel | E38: 1 | F38: 0% | G38: 1 | H38: EA | I38: 3.13 | J38: 3.13 | K38: $66.41 | L38: $207.75 | M38: $3,566.20 | N38: $3,566.20 | O38: $3,774
A39: 19 | B39: P101-P103 | C39: P101-P103 | D39: Wall Mounted Water Filter | E39: 1 | F39: 0% | G39: 1 | H39: EA | I39: 3.40 | J39: 3.40 | K39: $66.41 | L39: $225.52 | M39: $815.00 | N39: $815.00 | O39: $1,041
A40: 20 | B40: P101-P103 | C40: P101-P103 | D40: Tv: Tempering Valve Manuf: Leonard Model: #170Lf, Set At 100°F | E40: 1 | F40: 0% | G40: =E40+(E40*F40) -> 1 | H40: EA | I40: 0.57 | J40: =I40*G40 -> 0.57 | K40: $66.41 | L40: =K40*J40 -> $37.52 | M40: $135.61 | N40: =M40*G40 -> $135.61 | O40: =L40+N40 -> $173
A41: 21 | B41: P101-P103 | C41: P101-P103 | D41: S-4: Single Basin Sink Manuf: Advanced Tabco 17"X15" Stainless Steel Under Counter-Mounted Service Sink, Overall 28" F/B X 27" L/R, N.S.F. | E41: 1 | F41: 0% | G41: 1 | H41: EA | I41: 7.02 | J41: 7.02 | K41: $66.41 | L41: $466.34 | M41: $1,685.33 | N41: $1,685.33 | O41: $2,152
A42: 22 | B42: P101-P103 | C42: P101-P103 | D42: Wha: Water Hammer Arrestor Manuf: Watts Model: #Lf15m2-Bs, 3/4" Solder, Lead Free, Copper Body, Polypropylene Piston | E42: 2 | F42: 0% | G42: =E42+(E42*F42) -> 2 | H42: EA | I42: 0.21 | J42: 0.41 | K42: $66.41 | L42: $27.52 | M42: $49.72 | N42: $99.45 | O42: $127
A43: 23 | B43: P101-P103 | C43: P101-P103 | D43: Lavatory | E43: 2 | F43: 0% | G43: =E43+(E43*F43) -> 2 | H43: EA | I43: 4.17 | J43: 8.33 | K43: $66.41 | L43: $553.42 | M43: $1,000.00 | N43: $2,000.00 | O43: $2,553
A44: 24 | B44: P101-P103 | C44: P101-P103 | D44: WC: Water Closet Manuf: Kohler Model: Highcliff, 1.6 Gpf W/ Royal Sloan Flush Valve, 1.28 Gpf | E44: 2 | F44: 0% | G44: 2 | H44: EA | I44: 3.58 | J44: 7.17 | K44: $66.41 | L44: $475.94 | M44: $860.00 | N44: $1,720.00 | O44: $2,196
A45: 25 | B45: P101-P103 | C45: P101-P103 | D45: RD: (3") Roof Drain w/ (3") Overflow Drain Manuf: Zurn Model: #Z165 | E45: 5 | F45: 0% | G45: =E45+(E45*F45) -> 5 | H45: EA | I45: 3.58 | J45: =I45*G45 -> 17.92 | K45: $66.41 | L45: =K45*J45 -> $1,189.85 | M45: $670.00 | N45: =M45*G45 -> $3,350.00 | O45: =L45+N45 -> $4,540
A46: =IF(H46<>"",1+MAX(A41:A45),"") -> 
D47: Hot Water Pipe
A48: 26 | B48: P101-P103 | C48: P101-P103 | D48: 3/4" DiaHot Water Pipe | E48: =30+103.15 -> 133 | F48: 5% | G48: =E48+(E48*F48) -> 140 | H48: LF | I48: 0.12 | J48: =I48*G48 -> 16.78 | K48: $66.41 | L48: =K48*J48 -> $1,114.15 | M48: $10.80 | N48: =M48*G48 -> $1,509.92 | O48: =L48+N48 -> $2,624
A49: 27 | B49: P101-P103 | C49: P101-P103 | D49: 1" Dia Hot Water Pipe | E49: =91+30 -> 121 | F49: 5% | G49: 127 | H49: LF | I49: 0.15 | J49: 18.63 | K49: $66.41 | L49: $1,237.48 | M49: $13.20 | N49: $1,677.06 | O49: $2,915
D51: Note: Hot Water Pipe Material Is "L" Hard Drawn Copper
A52: =IF(H52<>"",1+MAX(A44:A49),"") -> 
A53: =IF(H53<>"",1+MAX(A46:A52),"") ->  | D53: Hot Water Pipe Connections
A54: =IF(H54<>"",1+MAX(A46:A53),"") -> 28 | B54: P101-P103 | C54: P101-P103 | D54: 3/4" Dia HW Pipe 90 Degree Elbow | E54: 4 | F54: 0% | G54: =E54+(E54*F54) -> 4 | H54: EA | I54: 0.03 | J54: =I54*G54 -> 0.13 | K54: $66.41 | L54: =K54*J54 -> $8.41 | M54: $7.60 | N54: =M54*G54 -> $30.40 | O54: =L54+N54 -> $39
A55: =IF(H55<>"",1+MAX(A47:A54),"") -> 29 | B55: P101-P103 | C55: P101-P103 | D55: 1" Dia HW Pipe 90 Degree Elbow | E55: 13 | F55: 0% | G55: 13 | H55: EA | I55: 0.04 | J55: 0.46 | K55: $66.41 | L55: $30.22 | M55: $8.40 | N55: $109.20 | O55: $139
A56: =IF(H56<>"",1+MAX(A48:A55),"") -> 30 | B56: P101-P103 | C56: P101-P103 | D56: 1" Dia HW Pipe TEE | E56: 4 | F56: 0% | G56: =E56+(E56*F56) -> 4 | H56: EA | I56: 0.04 | J56: =I56*G56 -> 0.14 | K56: $66.41 | L56: =K56*J56 -> $9.30 | M56: $8.40 | N56: =M56*G56 -> $33.60 | O56: =L56+N56 -> $43
A57: =IF(H57<>"",1+MAX(A49:A56),"") -> 31 | B57: P101-P103 | C57: P101-P103 | D57: 3/4" Dia HW Pipe TEE | E57: 1 | F57: 0% | G57: 1 | H57: EA | I57: 0.03 | J57: 0.03 | K57: $66.41 | L57: $2.10 | M57: $7.60 | N57: $7.60 | O57: $10
A58: =IF(H58<>"",1+MAX(A53:A57),"") -> 
D59: Cold Water Pipe
A60: 32 | B60: P101-P103 | C60: P101-P103 | D60: 3/4" Dia Cold Water Pipe | E60: =40.04+48+8 -> 96 | F60: 5% | G60: =E60+(E60*F60) -> 101 | H60: LF | I60: 0.12 | J60: =I60*G60 -> 12.10 | K60: $66.41 | L60: =K60*J60 -> $803.63 | M60: $10.80 | N60: =M60*G60 -> $1,089.09 | O60: =L60+N60 -> $1,893
A61: 33 | B61: P101-P103 | C61: P101-P103 | D61: 1" Dia Cold Water Pipe | E61: =43.62+8 -> 52 | F61: 5% | G61: 54 | H61: LF | I61: 0.15 | J61: 7.95 | K61: $66.41 | L61: $527.92 | M61: $13.20 | N61: $715.45 | O61: $1,243
A62: 34 | B62: P101-P103 | C62: P101-P103 | D62: 1-1/4" Dia Cold Water Pipe | E62: =34.45+36 -> 70 | F62: 5% | G62: =E62+(E62*F62) -> 74 | H62: LF | I62: 0.19 | J62: =I62*G62 -> 13.81 | K62: $66.41 | L62: =K62*J62 -> $917.00 | M62: $16.80 | N62: =M62*G62 -> $1,242.74 | O62: =L62+N62 -> $2,160
A63: 35 | B63: P101-P103 | C63: P101-P103 | D63: 1-1/2" Dia Cold Water Pipe | E63: =6+68.72 -> 75 | F63: 5% | G63: 78 | H63: LF | I63: 0.23 | J63: 17.78 | K63: $66.41 | L63: $1,180.99 | M63: $20.40 | N63: $1,600.50 | O63: $2,781
A64: 36 | B64: P101-P103 | C64: P101-P103 | D64: 2" Dia Cold Water Pipe | E64: 8 | F64: 5% | G64: =E64+(E64*F64) -> 8 | H64: LF | I64: 0.32 | J64: =I64*G64 -> 2.69 | K64: $66.41 | L64: =K64*J64 -> $178.51 | M64: $28.80 | N64: =M64*G64 -> $241.92 | O64: =L64+N64 -> $420
D66: Note: Cold Water Pipe Material Is "L" Hard Drawn Copper
A67: =IF(H67<>"",1+MAX(A61:A66),"") -> 
A68: =IF(H68<>"",1+MAX(A62:A67),"") ->  | D68: Cold Water Pipe Connections
A69: =IF(H69<>"",1+MAX(A63:A68),"") -> 37 | B69: P101-P103 | C69: P101-P103 | D69: 3/4" Dia CW Pipe 90 Degree Elbow | E69: 12 | F69: 0% | G69: =E69+(E69*F69) -> 12 | H69: EA | I69: 0.03 | J69: =I69*G69 -> 0.38 | K69: $66.41 | L69: =K69*J69 -> $25.24 | M69: $7.60 | N69: =M69*G69 -> $91.20 | O69: =L69+N69 -> $116
A70: =IF(H70<>"",1+MAX(A64:A69),"") -> 38 | B70: P101-P103 | C70: P101-P103 | D70: 3/4" Dia CW Pipe TEE | E70: 1 | F70: 0% | G70: 1 | H70: EA | I70: 0.03 | J70: 0.03 | K70: $66.41 | L70: $2.10 | M70: $7.60 | N70: $7.60 | O70: $10
A71: =IF(H71<>"",1+MAX(A65:A70),"") -> 39 | B71: P101-P103 | C71: P101-P103 | D71: (3/4" Dia - 1" Dia) CW Pipe 90 Degree Elbow | E71: 2 | F71: 0% | G71: =E71+(E71*F71) -> 2 | H71: EA | I71: 0.03 | J71: =I71*G71 -> 0.07 | K71: $66.41 | L71: =K71*J71 -> $4.43 | M71: $8.00 | N71: =M71*G71 -> $16.00 | O71: =L71+N71 -> $20
A72: =IF(H72<>"",1+MAX(A66:A71),"") -> 40 | B72: P101-P103 | C72: P101-P103 | D72: (3/4" Dia - 1" Dia) CW Pipe TEE | E72: 4 | F72: 0% | G72: 4 | H72: EA | I72: 0.03 | J72: 0.13 | K72: $66.41 | L72: $8.85 | M72: $8.00 | N72: $32.00 | O72: $41
A73: 41 | B73: P101-P103 | C73: P101-P103 | D73: (1" Dia) CW Pipe TEE | E73: 1 | F73: 0% | G73: 1 | H73: EA | I73: 0.04 | J73: 0.04 | K73: $66.41 | L73: $2.32 | M73: $8.40 | N73: $8.40 | O73: $11
A74: 42 | B74: P101-P103 | C74: P101-P103 | D74: (1" Dia - 1-1/4" Dia) CW Pipe TEE | E74: 1 | F74: 0% | G74: 1 | H74: EA | I74: 0.04 | J74: 0.04 | K74: $66.41 | L74: $2.38 | M74: $8.60 | N74: $8.60 | O74: $11
A75: 43 | B75: P101-P103 | C75: P101-P103 | D75: (1" Dia - 1-1/2" Dia) CW Pipe 90 Degree Elbow | E75: 1 | F75: 0% | G75: 1 | H75: EA | I75: 0.04 | J75: 0.04 | K75: $66.41 | L75: $2.44 | M75: $8.80 | N75: $8.80 | O75: $11
A76: 44 | B76: P101-P103 | C76: P101-P103 | D76: (1-1/2" Dia) CW Pipe TEE | E76: 5 | F76: 0% | G76: 5 | H76: EA | I76: 0.04 | J76: 0.19 | K76: $66.41 | L76: $12.73 | M76: $9.20 | N76: $46.00 | O76: $59
A77: 45 | B77: P101-P103 | C77: P101-P103 | D77: (1-1/2" Dia - 1-1/4" Dia) CW Pipe TEE | E77: 3 | F77: 0% | G77: 3 | H77: EA | I77: 0.04 | J77: 0.11 | K77: $66.41 | L77: $7.47 | M77: $9.00 | N77: $27.00 | O77: $34
D79: Drain Pipe
A80: 46 | B80: P101-P103 | C80: P101-P103 | D80: 3/4" Dia Condensate Drain Pipe | E80: =8.5*7+40.08 -> 100 | F80: 5% | G80: =E80+(E80*F80) -> 105 | H80: LF | I80: 0.12 | J80: =I80*G80 -> 12.02 | K80: $66.41 | L80: =K80*J80 -> $798.53 | M80: $10.35 | N80: =M80*G80 -> $1,082.19 | O80: =L80+N80 -> $1,881
D82: Note: Condensate Drain Pipe Material Is Type "M" Hot Drawn Copper
D84: Water Pipe
A85: 47 | B85: P101-P103 | C85: P101-P103 | D85: 3/4" Dia Water Pipe | E85: 27 | F85: 5% | G85: =E85+(E85*F85) -> 29 | H85: LF | I85: 0.07 | J85: =I85*G85 -> 2.00 | K85: $66.41 | L85: =K85*J85 -> $132.72 | M85: $6.30 | N85: =M85*G85 -> $179.86 | O85: =L85+N85 -> $313
A86: 48 | B86: P101-P103 | C86: P101-P103 | D86: 1/2" Dia Water Pipe | E86: 18 | F86: 5% | G86: =E86+(E86*F86) -> 19 | H86: LF | I86: 0.06 | J86: =I86*G86 -> 1.06 | K86: $66.41 | L86: =K86*J86 -> $70.29 | M86: $5.04 | N86: =M86*G86 -> $95.26 | O86: =L86+N86 -> $166
D88: Note: Water Pipe Material Is C.P.V.C
D90: Valve
A91: 49 | B91: P101-P103 | C91: P101-P103 | D91: 1-1/2" Dia Electronic Gas Shut Off Valve | E91: 1 | F91: 0% | G91: =E91+(E91*F91) -> 1 | H91: EA | I91: 1.79 | J91: =I91*G91 -> 1.79 | K91: $66.41 | L91: =K91*J91 -> $118.89 | M91: $429.67 | N91: =M91*G91 -> $429.67 | O91: =L91+N91 -> $549
A92: 50 | B92: P101-P103 | C92: P101-P103 | D92: 3/8" Dia Check Valve | E92: 2 | F92: 0% | G92: =E92+(E92*F92) -> 2 | H92: EA | I92: 0.21 | J92: =I92*G92 -> 0.41 | K92: $66.41 | L92: =K92*J92 -> $27.48 | M92: $49.66 | N92: =M92*G92 -> $99.32 | O92: =L92+N92 -> $127
A93: 51 | B93: P101-P103 | C93: P101-P103 | D93: 1-1/2" Dia Plug Valve | E93: 1 | F93: 0% | G93: 1 | H93: EA | I93: 0.82 | J93: 0.82 | K93: $66.41 | L93: $54.29 | M93: $196.20 | N93: $196.20 | O93: $250
D95: Misc.
A96: 52 | B96: P101-P103 | C96: P101-P103 | D96: TP: Trap Primer Manuf: Zurn Model: #Z1022-Xl Auto Trap Primer, Lead Free Sani Guard | E96: 4 | F96: 0% | G96: =E96+(E96*F96) -> 4 | H96: EA | I96: 0.55 | J96: =I96*G96 -> 2.19 | K96: $66.41 | L96: =K96*J96 -> $145.65 | M96: $131.59 | N96: =M96*G96 -> $526.36 | O96: =L96+N96 -> $672
A97: 53 | B97: P101-P103 | C97: P101-P103 | D97: FD: Floor Drain Frank Patten N702w5375r Cast Iron W/ 5" Round Gate | E97: 3 | F97: 0% | G97: =E97+(E97*F97) -> 3 | H97: EA | I97: 0.81 | J97: =I97*G97 -> 2.42 | K97: $66.41 | L97: =K97*J97 -> $160.79 | M97: $193.69 | N97: =M97*G97 -> $581.07 | O97: =L97+N97 -> $742
A98: 54 | B98: P101-P103 | C98: P101-P103 | D98: Cleanout | E98: 3 | F98: 0% | G98: =E98+(E98*F98) -> 3 | H98: EA | I98: 0.29 | J98: =I98*G98 -> 0.88 | K98: $66.41 | L98: =K98*J98 -> $58.11 | M98: $70.00 | N98: =M98*G98 -> $210.00 | O98: =L98+N98 -> $268
A99: 55 | B99: P101-P103 | C99: P101-P103 | D99: 2-Way Cleanout | E99: 1 | F99: 0% | G99: =E99+(E99*F99) -> 1 | H99: EA | I99: 0.29 | J99: =I99*G99 -> 0.29 | K99: $66.41 | L99: =K99*J99 -> $19.37 | M99: $70.00 | N99: =M99*G99 -> $70.00 | O99: =L99+N99 -> $89
A100: 56 | B100: P101-P103 | C100: P101-P103 | D100: Wall Cleanout | E100: 8 | F100: 0% | G100: 8 | H100: EA | I100: 0.29 | J100: 2.33 | K100: $66.41 | L100: $154.96 | M100: $70.00 | N100: $560.00 | O100: $715
A101: 57 | B101: P101-P103 | C101: P101-P103 | D101: Floor Cleanout | E101: 2 | F101: 0% | G101: =E101+(E101*F101) -> 2 | H101: EA | I101: 0.33 | J101: 0.66 | K101: $66.41 | L101: $43.68 | M101: $78.93 | N101: $157.85 | O101: $202
A102: 58 | B102: P101-P103 | C102: P101-P103 | D102: Gas Meter | E102: 1 | F102: 0% | G102: =E102+(E102*F102) -> 1 | H102: EA | I102: 2.17 | J102: =I102*G102 -> 2.17 | K102: $66.41 | L102: =K102*J102 -> $143.89 | M102: $520.00 | N102: =M102*G102 -> $520.00 | O102: =L102+N102 -> $664
D104: Grease Pipe
A105: 59 | B105: P101-P103 | C105: P101-P103 | D105: 4" Dia Grease Waste Pipe | E105: 49 | F105: 5% | G105: =E105+(E105*F105) -> 52 | H105: LF | I105: 0.19 | J105: =I105*G105 -> 9.96 | K105: $66.41 | L105: =K105*J105 -> $661.65 | M105: $17.28 | N105: =M105*G105 -> $896.68 | O105: =L105+N105 -> $1,558
A106: 60 | B106: P101-P103 | C106: P101-P103 | D106: 3" Dia Grease Waste Pipe | E106: =9+19 -> 28 | F106: 5% | G106: =E106+(E106*F106) -> 29 | H106: LF | I106: 0.17 | J106: =I106*G106 -> 4.94 | K106: $66.41 | L106: =K106*J106 -> $328.01 | M106: $15.12 | N106: =M106*G106 -> $444.53 | O106: =L106+N106 -> $773
A107: 61 | B107: P101-P103 | C107: P101-P103 | D107: 2" Dia Grease Waste Pipe | E107: =3+6.33 -> 9 | F107: 5% | G107: 10 | H107: LF | I107: 0.11 | J107: 1.10 | K107: $66.41 | L107: $72.87 | M107: $10.08 | N107: $98.75 | O107: $172
D109: Note: Grease Waste Pipe Material Is PVC
D111: Grease Pipe Connections
A112: 62 | B112: P101-P103 | C112: P101-P103 | D112: 4" Dia Grease Waste Pipe WYE | E112: 1 | F112: 0% | G112: =E112+(E112*F112) -> 1 | H112: EA | I112: 0.05 | J112: =I112*G112 -> 0.05 | K112: $66.41 | L112: =K112*J112 -> $3.52 | M112: $12.71 | N112: =M112*G112 -> $12.71 | O112: =L112+N112 -> $16
A113: 63 | B113: P101-P103 | C113: P101-P103 | D113: 4" Dia Grease Waste Pipe 45 Degree Elbow | E113: 1 | F113: 0% | G113: 1 | H113: EA | I113: 0.05 | J113: 0.05 | K113: $66.41 | L113: $3.52 | M113: $12.71 | N113: $12.71 | O113: $16
A114: 64 | B114: P101-P103 | C114: P101-P103 | D114: (4" Dia - 3" Dia) Grease Waste Pipe WYE | E114: 3 | F114: 0% | G114: 3 | H114: EA | I114: 0.05 | J114: 0.15 | K114: $66.41 | L114: $9.89 | M114: $11.91 | N114: $35.73 | O114: $46
A115: 65 | B115: P101-P103 | C115: P101-P103 | D115: (4" Dia - 2" Dia) Grease Waste Pipe WYE | E115: 1 | F115: 0% | G115: 1 | H115: EA | I115: 0.05 | J115: 0.05 | K115: $66.41 | L115: $3.07 | M115: $11.11 | N115: $11.11 | O115: $14
A116: 66 | B116: P101-P103 | C116: P101-P103 | D116: 3" Dia Grease Waste Pipe 45" Degree Elbow | E116: 3 | F116: 0% | G116: 3 | H116: EA | I116: 0.05 | J116: 0.14 | K116: $66.41 | L116: $9.22 | M116: $11.11 | N116: $33.33 | O116: $43
A117: 67 | B117: P101-P103 | C117: P101-P103 | D117: 2" Dia Grease Waste Pipe 45" Degree Elbow | E117: 1 | F117: 0% | G117: 1 | H117: EA | I117: 0.04 | J117: 0.04 | K117: $66.41 | L117: $2.63 | M117: $9.51 | N117: $9.51 | O117: $12
D120: Waste Pipe
A121: 68 | B121: P101-P103 | C121: P101-P103 | D121: 3" Dia PVC Waste Pipe | E121: =9+66.75 -> 76 | F121: 5% | G121: =E121+(E121*F121) -> 80 | H121: LF | I121: 0.17 | J121: =I121*G121 -> 13.36 | K121: $66.41 | L121: =K121*J121 -> $887.39 | M121: $15.12 | N121: =M121*G121 -> $1,202.61 | O121: =L121+N121 -> $2,090
A122: 69 | B122: P101-P103 | C122: P101-P103 | D122: 4" Dia PVC Waste Pipe | E122: =3+67 -> 70 | F122: 5% | G122: =E122+(E122*F122) -> 74 | H122: LF | I122: 0.19 | J122: =I122*G122 -> 14.11 | K122: $66.41 | L122: =K122*J122 -> $937.18 | M122: $17.28 | N122: =M122*G122 -> $1,270.08 | O122: =L122+N122 -> $2,207
D124: Note: Waste Pipe Material Is PVC
D126: Waste Pipe Connections
A127: 70 | B127: P101-P103 | C127: P101-P103 | D127: 4" Dia PVC Waste Pipe 45 Degree Elbow | E127: 4 | F127: 0% | G127: =E127+(E127*F127) -> 4 | H127: EA | I127: 0.05 | J127: =I127*G127 -> 0.21 | K127: $66.41 | L127: =K127*J127 -> $14.07 | M127: $12.71 | N127: =M127*G127 -> $50.84 | O127: =L127+N127 -> $65
A128: 71 | B128: P101-P103 | C128: P101-P103 | D128: 4" Dia PVC Waste Pipe WYE | E128: 3 | F128: 0% | G128: 3 | H128: EA | I128: 0.05 | J128: 0.16 | K128: $66.41 | L128: $10.55 | M128: $12.71 | N128: $38.13 | O128: $49
A129: 72 | B129: P101-P103 | C129: P101-P103 | D129: (4" Dia - 3" Dia) PVC Waste Pipe WYE | E129: 1 | F129: 0% | G129: 1 | H129: EA | I129: 0.05 | J129: 0.05 | K129: $66.41 | L129: $3.30 | M129: $11.91 | N129: $11.91 | O129: $15
A130: 73 | B130: P101-P103 | C130: P101-P103 | D130: 3" Dia PVC Waste Pipe WYE | E130: 3 | F130: 0% | G130: 3 | H130: EA | I130: 0.05 | J130: 0.14 | K130: $66.41 | L130: $9.22 | M130: $11.11 | N130: $33.33 | O130: $43
A131: 74 | B131: P101-P103 | C131: P101-P103 | D131: 3" Dia PVC Waste Pipe 90 Degree Elbow | E131: 3 | F131: 0% | G131: 3 | H131: EA | I131: 0.05 | J131: 0.14 | K131: $66.41 | L131: $9.22 | M131: $11.11 | N131: $33.33 | O131: $43
A132: 75 | B132: P101-P103 | C132: P101-P103 | D132: 3" Dia PVC Waste Pipe 45 Degree Elbow | E132: 2 | F132: 0% | G132: 2 | H132: EA | I132: 0.05 | J132: 0.09 | K132: $66.41 | L132: $6.15 | M132: $11.11 | N132: $22.22 | O132: $28
D134: Gas Pipe
A135: 76 | B135: P101-P103 | C135: P101-P103 | D135: 2" Dia Gas Pipe | E135: =9+9.46 -> 18 | F135: 5% | G135: =E135+(E135*F135) -> 19 | H135: LF | I135: 0.11 | J135: =I135*G135 -> 2.17 | K135: $66.41 | L135: =K135*J135 -> $144.17 | M135: $10.08 | N135: =M135*G135 -> $195.38 | O135: =L135+N135 -> $340
A136: =IF(H136<>"",1+MAX(A130:A135),"") -> 77 | B136: P101-P103 | C136: P101-P103 | D136: 1-1/2" Dia Gas Pipe | E136: =24+48.38 -> 72 | F136: 5% | G136: =E136+(E136*F136) -> 76 | H136: LF | I136: 0.09 | J136: =I136*G136 -> 6.69 | K136: $66.41 | L136: =K136*J136 -> $444.14 | M136: $7.92 | N136: =M136*G136 -> $601.91 | O136: =L136+N136 -> $1,046
A137: 78 | B137: P101-P103 | C137: P101-P103 | D137: 1" Dia Gas Pipe | E137: 19 | F137: 5% | G137: =E137+(E137*F137) -> 20 | H137: LF | I137: 0.08 | J137: =I137*G137 -> 1.60 | K137: $66.41 | L137: =K137*J137 -> $105.99 | M137: $7.20 | N137: =M137*G137 -> $143.64 | O137: =L137+N137 -> $250
D139: Note: Gas Pipe Material Is PVC (Assumed)
D141: Gas Pipe Connections
A142: 79 | B142: P101-P103 | C142: P101-P103 | D142: (1-1/2" Dia - 2" Dia) Gas Pipe TEE | E142: 1 | F142: 0% | G142: =E142+(E142*F142) -> 1 | H142: EA | I142: 0.04 | J142: =I142*G142 -> 0.04 | K142: $66.41 | L142: =K142*J142 -> $2.44 | M142: $8.83 | N142: =M142*G142 -> $8.83 | O142: =L142+N142 -> $11
A143: 80 | B143: P101-P103 | C143: P101-P103 | D143: (2" Dia) Gas Pipe TEE | E143: 1 | F143: 0% | G143: 1 | H143: EA | I143: 0.04 | J143: 0.04 | K143: $66.41 | L143: $2.61 | M143: $9.43 | N143: $9.43 | O143: $12
A144: 81 | B144: P101-P103 | C144: P101-P103 | D144: (1-1/2" Dia) Gas Pipe TEE | E144: 1 | F144: 0% | G144: 1 | H144: EA | I144: 0.03 | J144: 0.03 | K144: $66.41 | L144: $2.28 | M144: $8.23 | N144: $8.23 | O144: $11
A145: 82 | B145: P101-P103 | C145: P101-P103 | D145: (1-1/2" Dia) Gas Pipe 90 Degree Elbow | E145: 5 | F145: 0% | G145: 5 | H145: EA | I145: 0.03 | J145: 0.17 | K145: $66.41 | L145: $11.38 | M145: $8.23 | N145: $41.14 | O145: $53
D147: Vent Pipe
A148: 83 | B148: P101-P103 | C148: P101-P103 | D148: 3" Dia Vent Pipe | E148: =22+33.82 -> 56 | F148: 5% | G148: =E148+(E148*F148) -> 59 | H148: LF | I148: 0.17 | J148: =I148*G148 -> 9.85 | K148: $66.41 | L148: =K148*J148 -> $653.92 | M148: $15.12 | N148: =M148*G148 -> $886.20 | O148: =L148+N148 -> $1,540
A149: 84 | B149: P101-P103 | C149: P101-P103 | D149: 2" Dia Vent Pipe | E149: =39+12.42 -> 51 | F149: 5% | G149: 54 | H149: LF | I149: 0.11 | J149: 6.05 | K149: $66.41 | L149: $401.58 | M149: $10.08 | N149: $544.23 | O149: $946
D151: Note: Vent Pipe Material Is PVC
D153: Vent Pipe Connections
A154: 85 | B154: P101-P103 | C154: P101-P103 | D154: 3" Dia Vent Pipe TEE | E154: 1 | F154: 0% | G154: =E154+(E154*F154) -> 1 | H154: EA | I154: 0.05 | J154: =I154*G154 -> 0.05 | K154: $66.41 | L154: =K154*J154 -> $3.07 | M154: $11.11 | N154: =M154*G154 -> $11.11 | O154: =L154+N154 -> $14
A155: 86 | B155: P101-P103 | C155: P101-P103 | D155: 3" Dia Vent Pipe 45 Degree Elbow | E155: 1 | F155: 0% | G155: 1 | H155: EA | I155: 0.05 | J155: 0.05 | K155: $66.41 | L155: $3.07 | M155: $11.11 | N155: $11.11 | O155: $14
A156: 87 | B156: P101-P103 | C156: P101-P103 | D156: 2" Dia Vent Pipe 45 Degree Elbow | E156: 1 | F156: 0% | G156: 1 | H156: EA | I156: 0.04 | J156: 0.04 | K156: $66.41 | L156: $2.63 | M156: $9.51 | N156: $9.51 | O156: $12
D158: SUBTOTAL | L158: =IF(H158<>"",0.4*N158,"") ->  | P158: =SUM(O28:O157) -> $63,771
C159: 310000 | D159: DIVISION 31 — EARTHWORK
D161: Excavation
A162: 88 | B162: P101-P103 | C162: P101-P103 | D162: Excavation For 4" Dia Grease Waste Pipe | E162: =1.33*1*25/27 -> 1 | F162: 5% | G162: =E162+(E162*F162) -> 1 | H162: CY | I162: 0.58 | J162: =I162*G162 -> 0.75 | K162: $66.41 | L162: =K162*J162 -> $50.09 | M162: 0 | N162: =M162*G162 -> 0 | O162: =L162+N162 -> $50
A163: 89 | B163: P101-P103 | C163: P101-P103 | D163: Excavation For 4" Dia Waste Pipe | E163: =(1.17*1*77)/27 -> 3 | F163: 5% | G163: 4 | H163: CY | I163: 0.58 | J163: 2.04 | K163: $66.41 | L163: $135.72 | M163: 0 | N163: 0 | O163: $136
A164: 90 | B164: P101-P103 | C164: P101-P103 | D164: Excavation For (7'-6" x 12'-6") Grease Interceptor | E164: =1*6.25*5.67*7/27 -> 9 | F164: 5% | G164: =E164+(E164*F164) -> 10 | H164: CY | I164: 0.58 | J164: 5.63 | K164: $66.41 | L164: $373.71 | M164: 0 | N164: 0 | O164: $374
D166: Backfill
A167: 91 | B167: P101-P103 | C167: P101-P103 | D167: Backfill For 4" Dia Grease Water Pipe | E167: =E162-((3.14*0.33*0.33/4)*59.67)/27 -> 1 | F167: 5% | G167: =E167+(E167*F167) -> 1 | H167: CY | I167: 0.33 | J167: =I167*G167 -> 0.36 | K167: $66.41 | L167: =K167*J167 -> $24.23 | M167: 0 | N167: =M167*G167 -> 0 | O167: =L167+N167 -> $24
A168: 92 | B168: P101-P103 | C168: P101-P103 | D168: Backfill For 2" Dia Grease Water Pipe | E168: =E163-((3.14*0.17*0.17/4)*41)/27 -> 3 | F168: 5% | G168: 3 | H168: CY | I168: 0.33 | J168: 1.16 | K168: $66.41 | L168: $76.76 | M168: 0 | N168: 0 | O168: $77
A170: 93 | D170: Soil Export (Fluff Factor Applied) | E170: =(SUM(E162:E164)-SUM(E167:E168))*1.33 -> 13 | F170: 5% | G170: =E170+(E170*F170) -> 13 | H170: CY | I170: 0.25 | J170: =I170*G170 -> 3.29 | K170: $66.41 | L170: =K170*J170 -> $218.19 | M170: 0 | N170: =M170*G170 -> 0 | O170: =L170+N170 -> $218
D172: SUBTOTAL | L172: =IF(H172<>"",0.4*N172,"") ->  | P172: =SUM(O161:O171) -> $879
C173: 330000 | D173: DIVISION 33 — UTILITIES
D175: Grease Interceptor
A176: 94 | B176: P001 | C176: P001 | D176: GI: (75"L x 68"W x 84"H) Grease Interceptor Capacity: 750 GAL | E176: 1 | F176: 0% | G176: =E176+(E176*F176) -> 1 | H176: EA | I176: 16.48 | J176: =I176*G176 -> 16.48 | K176: $66.41 | L176: =K176*J176 -> $1,094.41 | M176: $8,899.00 | N176: =M176*G176 -> $8,899.00 | O176: =L176+N176 -> $9,993
D178: Waste Pipe
A179: 95 | B179: P001 | C179: P001 | D179: 4" Dia Grease Waste Pipe | E179: 25 | F179: 5% | G179: =E179+(E179*F179) -> 26 | H179: LF | I179: 0.32 | J179: =I179*G179 -> 8.40 | K179: $66.41 | L179: =K179*J179 -> $557.84 | M179: $28.80 | N179: =M179*G179 -> $756.00 | O179: =L179+N179 -> $1,314
A180: 96 | B180: P001 | C180: P001 | D180: 4" Dia Waste Pipe | E180: 77 | F180: 5% | G180: =E180+(E180*F180) -> 81 | H180: LF | I180: 0.32 | J180: 25.87 | K180: $66.41 | L180: $1,718.16 | M180: $28.80 | N180: $2,328.48 | O180: $4,047
D182: Note: Grease & Waste Pipe Material Is Type PVC
A184: =IF(H184<>"",1+MAX(A10:A183),"") ->  | D184: SUBTOTAL | L184: =IF(H184<>"",0.4*N184,"") ->  | M184: =IF(H184<>"",N184-L184,"") ->  | P184: =SUM(O174:O183) -> $15,354
A185: SUB TOTAL | L185: =SUM(L6:L184) -> $23,261 | N185: =SUM(N6:N184) -> $56,972 | O185: =SUM(O6:O184) -> $80,234 | P185: =SUM(P6:P184) -> $80,234
A186: TAX | N186: 8.5% | P186: =P185*N186 -> $6,820
A187: PROFIT | N187: 10% | P187: =P185*N187 -> $8,023
A188: CONTIGENCIES | N188: 5% | P188: =P185*N188 -> $4,012
A189: TOTAL BASE BID | P189: =SUM(P185:P188) -> $99,089
A190: General Exclusions: Any kind of controlled inspection, contaminated material, architect and engineering fees, security, building charges, signage, sign off, protection of adjoining building (if any), any work not mentioned above.
A191: General Notes: The prices used are taken from RS Means online i.e. the standard pricing, the company is not responsible for any kind of variations in the prices. So it is preferred to review the prices.

Sheet UJ (hidden)
C2: PROJECT: | D2: 625 PARK AVE PHASE 1B
C3: ADDRESS: | D3: 625 PARK AVENUE,
D4: NEW YORK, NY-10065.
H6: DATE | I6: =TODAY() -> 2026-07-28
A7: ITEM # | B7: CSI SEC. | C7: DESCRIPTION | D7: QTY. | E7: WASTE | F7: QTY. W/ WASTE | G7: UNIT | H7: UNIT COST | I7: TRADE COST | L7: Single side areas
C8: SCOPE OF WORK | L8: Dry | M8: Wet
A9: 1 | B9: 09 29 | C9: 2 layered 5/8" thick USG fiberock brand panels for walls and ceilings. | D9: 11,635 | E9: 10% | F9: =D9*(1+E9) -> 12,799 | G9: sf | H9: $4.0 | I9: =H9*F9 -> $51,194 | J9: Type 1+Type 4+Type 6+ceiling | K9: Type 1 | L9: =2520-80 -> 2440 | M9: 280 | N9: =(2440*2+290*2+2345+3830) -> 11635
A10: 2 | B10: 09 29 | C10: 2 layerd 5/8" thick USG fiberock aqua tough brand panels for wall and ceilings in wet areas. | D10: 1,185 | E10: 10% | F10: =D10*(1+E10) -> 1,304 | G10: sf | H10: $4.5 | I10: $5,866 | J10: Type 1+Type 4+Type 6+wet ceiling | K10: Type 2 | L10: =210-80 -> 130 | M10: 80 | N10: =(280*2+325+300) -> 1185
A11: 3 | B11: 09 29 | C11: 2 layered 2 HR rated 5/8" thick USG fiberock brand panels for walls. | D11: 260 | E11: 10% | F11: =D11*(1+E11) -> 286 | G11: sf | H11: $4.5 | I11: $1,287 | J11: Type 2 | K11: Type 3 | N11: =130*2 -> 260
A12: 4 | B12: 09 29 | C12: 2 layered 2 HR rated 5/8" thick USG fiberock aqua tough brand panels for walls in wet areas. | D12: 160 | E12: 10% | F12: 176 | G12: sf | H12: $5.0 | I12: $880 | J12: Type 2 | K12: Type 4 | L12: 290 | N12: =80*2 -> 160
A13: 5 | B13: 09 29 | C13: 3 layered 3 HR rated 5/8" thick USG fiberock brand panels for walls. | D13: 300 | E13: 10% | F13: 330 | G13: sf | H13: $4.0 | I13: $1,320 | J13: Type 7 | K13: Type 5 | L13: 1200 | N13: =150*2 -> 300
A14: 6 | B14: 09 26 | C14: 3/32" thick gypsum veneer plaster skim coat. | D14: 14,740 | E14: 10% | F14: 16,214 | G14: sf | H14: $4.0 | I14: $64,856 | J14: Type 1+Type 2+ Type 4+Type 5+Type 6 +Type 7 | K14: Type 6 | L14: =2670-325 -> 2345 | M14: 325 | N14: =SUM(N9:N13)+L13 -> 14740 | O14: =SUM(L9:M10)*2+L13+SUM(L14:M14)+L15*2+SUM(L17:M17)+L12*2 -> 14740 | P14: =N14-O14 -> 0
A15: 7 | B15: 09 22 16 | C15: 3-5/8" steel studs 20 GA @ 16" O.C. | D15: 5,750 | E15: 10% | F15: 6,325 | G15: sf | H15: $2.5 | I15: $15,813 | J15: Type 1+Type 2+Type 6+Type 7 | K15: Type 7 | L15: 150 | N15: =SUM(L9:M10)+SUM(L14:M15) -> 5750
A16: 8 | B16: 10 22 16 | C16: 1-5/8" steel studs 20 GA @ 12" O.C. | D16: 290 | E16: 10% | F16: 319 | G16: sf | H16: $2.0 | I16: $638 | J16: Type 4 | K16: Type 8 | L16: 20
A17: 8 | B17: 09 22 26 | C17: Ceiling suspension system. | D17: 4,130 | E17: 10% | F17: 4,543 | G17: sf | H17: $3.0 | I17: $13,629 | K17: Ceiling | L17: 3830 | M17: 300 | N17: =SUM(L17:M17) -> 4130
A18: 9 | B18: 07 21 16 | C18: Batt Insulation. | D18: 5,600 | E18: 5% | F18: 5,880 | G18: sf | H18: $2.0 | I18: $11,760 | J18: Type 1+Type 2+ Type 6 | N18: =SUM(L9:M10)+SUM(L14:M14) -> 5600
A19: 10 | B19: 07 21 16 | C19: Batt Insulation type SAFB. | D19: 150 | E19: 10% | F19: 165 | G19: sf | H19: $2.2 | I19: $363 | J19: Type 7 | N19: 150
A21: SUB TOTAL | I21: =SUM(I9:I19) -> $167,605
A22: INSURANCE (3%) | I22: =(3/100)*I21 -> $5,028
A23: TOTAL BASE BID | I23: =SUM(I21:I22) -> $172,633
C25: Exclusions
B26: 1 | C26: Mouldings
B27: 2 | C27: Patch work
B28: 3 | C28: Fixtures
B29: 4 | C29: Electrical work
B30: 5 | C30: Stone and/or tile work
B31: 6 | C31: Wall type 8 [no details on provided on the drawing]

Sheet DETAIL (2) (hidden)
B2: PROJECT: | C2: 625 PARK AVE PHASE 1B
B3: ADDRESS: | C3: 625 PARK AVENUE
C4: NEW YORK, NY 10065
E6: DATE | F6: =TODAY() -> 2026-07-28
A7: ITEM # | B7: DESCRIPTION | C7: UNIT COST | D7: QTY. | E7: UNIT | F7: TRADE COST
B8: SCOPE OF WORK
A9: 1 | B9: 5/8" 2 layered USG fiberock brand panels. | D9: =((2358+277+2077)-644)+3830 -> 7,898 | E9: sf | F9: =C9*D9 -> 0 | G9: Type 1+Type 4+Type 6+ceiling
A10: 2 | B10: 5/8" 2 layered USG fiberock aqua tough brand panels. (Wet area). | D10: =644+292 -> 936 | E10: sf | F10: =C10*D10 -> 0 | G10: Type 1+Type 4+Type 6+wet ceiling | I10: Height 9'6"
A11: 3 | B11: 2 HR rated 5/8" 2 layered USG fiberock brand panels. | D11: =206-78 -> 128 | E11: sf | F11: 0 | G11: Type 2 | I11: For Doors & Cabinets 1'3"
A12: 4 | B12: 2 HR rated 5/8" 2 layered USG fiberock aqua tough brand panels. (Wet area). | D12: 78 | E12: sf | F12: 0 | G12: Type 2
A13: 5 | B13: 3 HR rated 5/8" 3 layered USG fiberock brand panels. | D13: 148 | E13: sf | F13: 0 | G13: Type 7
A14: 6 | B14: 3/32" thick gypsum veneer plaster skim coat. | D14: =2538+206+277+1343+2077+148 -> 6,589 | E14: sf | F14: 0 | G14: Type 1+Type 2+ Type 4+Type 5+Type 6 +Type 7
A15: 7 | B15: 3 5/8" steel studs 20 GA @ 16" O.C. | D15: 4,968 | E15: sf | F15: 0 | G15: Type 1+Type 2+Type 6+Type 7
A16: 8 | B16: 1 5/8" steel studs 20 GA @ 12" O.C. | D16: 277 | E16: sf | F16: 0 | G16: Type 4
A17: 9 | B17: Batt sound Insulation. | D17: =2538+206+2077 -> 4,821 | E17: sf | F17: 0 | G17: Type 1+Type 2+ Type 6
A18: 10 | B18: Batt sound Insulation type SAFB. | D18: 148 | E18: sf | F18: 0 | G18: Type 7 | H18: QTY Details
H19: Type 1 | I19: 2538 | J19: 2520
A20: TOTAL | F20: =SUM(F9:F18) -> 0 | H20: Type 2 | I20: 205 | J20: 206
B21: Exclusions | H21: Type 3 | I21: N/A
A22: 1 | B22: Mouldings | H22: Type 4 | I22: 277 | J22: 290
A23: 2 | B23: Patch work | H23: Type 5 | I23: 1342 | J23: 1200
A24: 3 | B24: Fixtures | H24: Type 6 | I24: 2077 | J24: 2670
A25: 4 | B25: Electrical work | H25: Type 7 | I25: 148 | J25: 150
A26: 5 | B26: Stone and/or tile work | H26: Type 8 | I26: 22 | J26: 20 | K26: No details given
A27: 6 | H27: Ceiling | I27: 3830
H28: Wet Ceiling | I28: 292
B31: DETAILS
B32: Type 1- Interior Partition | G32: Type 2- 2HR rated Interior Partition | H32: Type
B33: 2 layers 5/8' USG fiberock brand panels (Fiberock aqua tough brand at all wet areas) Glue second layer, finished with 3-32" thick gypsum veneer plaster skim coat. 3 5/8" Stl studs 20 GA @16" O.C with Batt insulation. 2 layers 5/8" USG fiberock brand panels(Fiberock aqua tough brand at all wet areas finished 3-32" thick gypsum veneer plaster skim coat | G33: 2 layers 5/8' USG fiberock brand panels (Fiberock aqua tough brand at all wet areas) Glue second layer, finished with 3-32" thick gypsum veneer plaster skim coat. 3 5/8" Stl studs 20 GA @16" O.C with Batt insulation. 2 layers 5/8" USG fiberock brand panels(Fiberock aqua tough brand at all wet areas finished 3-32" thick gypsum veneer plaster skim coat
B35: TYPE 3 Interior partition at chase | G35: TYPE 4 Pocket door partition
B36: 2 layer 5/8" USG fiberock brand panels ( Fiberock aqua tough brand at all wet areas ) Glue second layer fill batt insulation, finished with 3/32" thick gypsum veneer plaster skim coat. 20 Ga 2-1/2" mtl studs @ 16 O.C. with batt insulation. Pipe chase space. 2 layers 5/8" USG fiberock brand panels (Fiberock aqua tough brand at all wet areas finished with 3/32" thick gypsum veneer plaster skim coat. | G36: 2 Layers 5/8" USG fiberock brand panels (Fiberock Aqua tough brand at all wet areas) Glue second layer, Finished with 3/32" thick gypsum veneer plaster skim coat. 1 5/8" 20 Ga stl studs @12 O.C. 2 layer 5/8" USG fiberock brand panels (fiberock aqua tough brand at wet areas) finished with 3/32" thick gypsum veneer plaster skim coat.
B38: TYPE 5 Existing wall skim coat | G38: TYPE 6 EXISTING WALL- Furring
B39: Apply 3/32" Thick gypsum veneer skim coat. Fill and smooth all imperfections | G39: 3 5/8" 20 Ga stl studs @ 16 O.C. 2 layers 5/8" USG fiberock brand panels dimensions from exterior wall to be varified with architect. Fill with Batt insulation, Finished with 3/32" Thick Gypsum veneer plaster skim coat
B40: TYPE 7 Interior Partition- 3 Hr rated
B41: 3 layer 5/8" USG fiberock brand panels, glue third layer finished with 3/32" thick gypsum veneer plaster skim coat. 3 5/8" stl studs 20 GA @16"O.C. Batt insulation Type SAFB. 3 layer 5/8" USG fiberock brand panels, glue third layer finished with 3-32" thick gypsum veneer plaster skim coat
